bitfinex/quotes_ETHUSD_20250403
["timestamp","ask_amount","ask_price","bid_price","bid_amount"]
[1743692044698,0.42343188,1755.8,1755.3,0.7851]
[1743692045301,8.69385,1756.3,1755.4,0.7753]
[1743692045628,6.779,1756.1,1755.4,1.1368]
[1743692046214,6.779,1756.1,1755.5,0.821]
[1743692046414,6.768,1756.2,1755.5,0.821]
[1743692046585,5.69356,1756.4,1755.5,0.821]
[1743692046792,6.762,1756.3,1755.7,0.764]
[1743692047131,0.42646555,1756.4,1755.8,0.05694467]
[1743692047346,6.76,1756.4,1755.7,0.764]
[1743692047742,41.7888,1756.5,1755.7,0.764]
[1743692047743,41.034,1756.5,1755.7,6.45965]
[1743692047897,47.786,1756.5,1755.9,0.8199]
[1743692048335,41.034,1756.5,1755.9,0.8199]
[1743692048554,41.034,1756.5,1756.1,0.7594]
[1743692050457,5.69361,1756.4,1755.9,0.7594]
[1743692050626,6.263181,1756.3,1755.9,0.7594]
[1743692050812,6.746,1756.2,1755.9,0.7594]
[1743692051413,0.05,1756.9,1756.0,0.3615]
[1743692051650,6.785,1756.9,1756.1,0.7594]
[1743692051833,11.38458,1756.8,1756.1,0.7594]
[1743692052038,5.69304,1756.6,1756.1,0.7594]
[1743692052212,11.38604,1756.6,1756.1,0.7594]
[1743692052418,5.69314,1756.5,1756.1,0.7594]
[1743692052621,6.781,1756.4,1756.1,0.7594]
[1743692053552,6.775,1756.5,1756.1,0.7594]
[1743692053937,6.775,1756.5,1755.5,0.3615]
[1743692053938,13.14576,1756.5,1755.8,0.784]
[1743692054130,7.4525,1756.5,1755.8,0.784]
[1743692054316,6.775,1756.5,1755.8,0.784]
[1743692054516,9.71418213,1756.8,1755.9,0.3615]
[1743692054824,6.848,1756.9,1756.1,0.8332]
[1743692055048,6.848,1756.9,1756.1,1.1947]
[1743692055224,12.53989,1756.9,1756.1,1.1947]
[1743692055426,5.6925,1756.7,1756.1,1.1947]
[1743692055631,5.27588113,1756.8,1756.1,1.1947]
[1743692056347,7.26960938,1756.9,1756.1,0.3615]
[1743692056550,7.26960938,1756.9,1756.2,0.7673]
[1743692056924,0.05,1756.9,1756.3,0.3615]
[1743692057124,0.05,1756.9,1756.4,0.7516]
[1743692057125,6.778,1756.8,1756.4,0.7516]
[1743692059117,6.778,1756.8,1756.3,0.3615]
[1743692059118,12.47044,1756.8,1756.3,0.3615]
[1743692059320,13.76471581,1756.8,1756.3,0.3615]
[1743692059628,8.07227581,1756.8,1756.3,0.3615]
[1743692059833,7.22331807,1756.9,1756.3,0.3615]
[1743692060048,6.801,1756.9,1756.4,0.8043]
[1743692061462,0.05,1756.9,1756.5,0.3615]
[1743692061654,0.05,1756.9,1756.6,0.8181]
[1743692062637,0.05,1756.9,1756.7,0.7846]
[1743692062841,0.05,1756.9,1756.8,0.7846]
[1743692063443,0.05,1757.9,1756.9,8.69183]
[1743692063774,5.68964,1757.6,1757.1,0.8295]
[1743692063945,6.769,1757.5,1757.1,0.8295]
[1743692064344,3.05,1757.9,1757.1,0.8295]
[1743692064547,6.769,1757.8,1757.3,0.8295]
[1743692064760,0.05,1757.9,1757.3,1.191]
[1743692065146,0.05,1757.9,1757.4,0.05688991]
[1743692065352,0.05,1757.9,1757.3,0.3615]
[1743692065538,0.05,1757.9,1757.4,0.7811]
[1743692066451,5.73871,1757.9,1757.4,0.7811]
[1743692066664,0.573871,1757.8,1757.4,0.7811]
[1743692066865,6.262951,1757.8,1757.4,0.7811]
[1743692067047,0.573871,1757.8,1757.4,0.7811]
[1743692067367,0.05,1757.9,1757.4,0.7811]
[1743692068439,5.73882,1757.9,1757.4,0.7811]
[1743692068776,5.6891,1757.8,1757.4,0.7811]
[1743692069473,5.73882,1757.9,1757.5,0.05689326]
[1743692069771,5.73882,1757.9,1757.4,0.7811]
[1743692069969,5.73881,1757.9,1757.4,0.7811]
[1743692070469,5.68905,1757.8,1757.4,0.7811]
[1743692071046,5.68894,1757.8,1757.4,0.7811]
[1743692071372,0.05,1757.9,1757.5,0.0568933]
[1743692071573,0.05,1757.9,1757.6,0.82478072]
[1743692071763,0.05,1757.9,1757.8,0.7862]
[1743692072276,0.05,1757.9,1757.8,0.3615]
[1743692072585,0.05,1757.9,1757.8,1.1477]
[1743692072945,0.05,1757.9,1757.8,2.25944028]
[1743692073145,0.05,1757.9,1757.8,1.57574828]
[1743692073369,0.05,1757.9,1757.8,1.63261782]
[1743692073764,0.05,1757.9,1757.8,1.57574828]
[1743692074748,49.7174,1758.9,1757.9,0.7848]
[1743692074749,46.7174,1758.9,1757.9,0.7848]
[1743692074965,46.7174,1758.9,1758.1,0.7848]
[1743692075280,52.06014,1758.9,1758.1,0.7848]
[1743692075466,52.06022,1758.9,1758.1,0.7848]
[1743692075672,41.032,1758.9,1758.1,0.7848]
[1743692075877,46.71752,1758.9,1758.1,0.7848]
[1743692076347,46.71752,1758.9,1757.9,3.0]
[1743692076348,47.726,1758.9,1758.2,1.21545652]
[1743692076553,47.726,1758.9,1758.4,0.7971]
[1743692076766,47.726,1758.9,1758.4,1.1586]
[1743692076971,53.33310982,1758.9,1758.4,1.1586]
[1743692077285,53.41148,1758.9,1758.4,1.1586]
[1743692077578,53.41158,1758.9,1758.4,1.1586]
[1743692078272,11.37181,1758.8,1758.4,1.1586]
[1743692078463,5.68582,1758.8,1758.4,1.1586]
[1743692078666,53.4114,1758.9,1758.4,1.1586]
[1743692079575,59.09698,1758.9,1758.4,1.1586]
[1743692079777,53.4114,1758.9,1758.4,1.1586]
[1743692080253,47.726,1758.9,1758.5,0.05685521]
[1743692080454,47.726,1758.9,1758.4,1.1586]
[1743692081661,5.68582,1758.8,1758.4,1.1586]
[1743692083284,53.41142,1758.9,1758.4,1.1586]
[1743692083654,5.68571,1758.8,1758.4,1.1586]
[1743692084050,53.41142,1758.9,1758.4,1.1586]
[1743692084268,59.09705,1758.9,1758.4,1.1586]
[1743692084451,53.41142,1758.9,1758.4,1.1586]
[1743692084655,59.09701,1758.9,1758.4,1.1586]
[1743692084954,5.68623,1758.7,1758.4,1.1586]
[1743692085180,5.68659,1758.6,1758.0,0.8253]
[1743692085363,11.37323,1758.6,1758.0,1.1868]
[1743692085551,5.68659,1758.6,1758.1,0.05686709]
[1743692085758,11.37313,1758.6,1758.0,1.1868]
[1743692086065,3.85280671,1758.8,1758.1,0.05686712]
[1743692086066,5.68605,1758.7,1758.1,0.05686712]
[1743692086470,5.68635,1758.6,1758.1,0.05686705]
[1743692086670,5.68635,1758.6,1758.0,1.1868]
[1743692086869,5.68668,1758.5,1758.1,0.05686811]
[1743692087066,5.68667,1758.5,1758.0,1.1868]
[1743692087267,5.68731,1758.3,1758.0,1.1868]
[1743692087790,7.173667,1758.5,1758.0,1.1868]
[1743692087791,5.68727,1758.4,1758.0,1.1868]
[1743692088090,6.605,1758.5,1758.0,1.1868]
[1743692088285,6.605,1758.5,1758.1,0.7988]
[1743692088874,53.33648,1758.9,1758.2,0.41836522]
[1743692089078,5.68582,1758.8,1758.3,0.7988]
[1743692089262,47.651,1758.9,1758.3,1.1603]
[1743692089263,53.33644,1758.9,1758.3,1.1603]
[1743692089459,47.651,1758.9,1758.4,0.7988]
[1743692089667,41.032,1758.9,1758.4,0.7988]
[1743692090363,46.71739,1758.9,1758.4,0.7988]
[1743692090588,57.643303,1758.9,1758.4,0.7988]
[1743692090986,5.68586,1758.8,1758.4,0.7988]
[1743692091496,41.032,1758.9,1758.5,0.05685888]
[1743692091660,41.032,1758.9,1758.4,0.7988]
[1743692092188,6.10352581,1759.5,1758.4,0.7988]
[1743692092189,5.68264,1759.8,1758.6,0.8177]
[1743692092388,5.68264,1759.8,1758.9,0.8177]
[1743692092389,5.68294,1759.7,1758.9,0.8177]
[1743692092622,5.68345,1759.5,1758.9,0.8177]
[1743692093091,5.68345,1759.5,1759.0,0.0568418]
[1743692093292,6.7,1759.4,1758.9,0.8177]
[1743692093482,12.38386,1759.4,1758.9,0.8177]
[1743692094302,6.693,1759.3,1759.0,0.05684473]
[1743692095084,6.693,1759.3,1758.9,0.8177]
[1743692095992,50.48477671,1759.7,1758.9,0.8177]
[1743692096198,6.675,1759.6,1759.0,0.05683702]
[1743692096379,6.675,1759.6,1759.1,0.7984]
[1743692096582,6.675,1759.6,1759.2,0.05683709]
[1743692097698,6.675,1759.6,1759.2,0.3615]
[1743692098085,10.10858571,1759.8,1759.2,0.3615]
[1743692098300,0.05,1759.9,1759.4,0.7833]
[1743692098503,5.68334,1759.6,1759.2,0.8324]
[1743692098680,18.03862,1759.6,1759.2,0.8324]
[1743692098997,6.672,1759.6,1759.3,0.05683979]
[1743692099177,6.672,1759.6,1759.3,0.05683456]
[1743692099376,18.84824,1759.9,1759.2,1.26486599]
[1743692099563,6.663,1759.8,1759.2,1.26486599]
[1743692099970,12.34563,1759.8,1759.2,1.26486599]
[1743692100166,5.68313,1759.6,1759.2,0.8324]
[1743692100395,11.39534238,1759.7,1759.2,0.8324]
[1743692100604,0.02914238,1759.5,1759.2,0.8324]
[1743692101883,0.02914238,1759.5,1759.2,1.26507918]
[1743692102182,0.02914238,1759.5,1759.4,0.7622]
[1743692103013,0.02914238,1759.5,1759.4,0.81902436]
[1743692103514,0.02914238,1759.5,1759.4,0.7622]
[1743692104292,0.02914238,1759.5,1759.1,0.8291]
[1743692104601,5.71264238,1759.5,1759.1,0.8291]
[1743692104806,5.71269238,1759.5,1759.1,0.8291]
[1743692105006,6.85227962,1759.5,1759.1,0.8291]
[1743692105318,5.68451,1759.2,1758.9,0.7705]
[1743692105506,5.68451,1759.2,1758.5,0.3615]
[1743692105507,5.68472,1759.1,1758.6,0.8075]
[1743692106124,12.29905,1759.0,1758.6,0.8075]
[1743692106487,6.614,1759.0,1758.6,0.8075]
[1743692106685,6.614,1759.0,1758.7,0.05685363]
[1743692107207,6.613,1759.3,1758.8,0.8212]
[1743692107408,7.2743,1759.3,1758.8,0.8212]
[1743692107612,5.68442,1759.2,1758.8,0.8212]
[1743692108123,5.68442,1759.2,1758.5,0.3615]
[1743692108320,6.44272,1759.2,1758.6,0.88005106]
[1743692108525,5.68442,1759.2,1758.6,0.8232]
[1743692108828,6.613,1759.3,1758.8,0.8217]
[1743692109188,12.29709,1759.3,1758.8,0.8217]
[1743692109601,6.613,1759.3,1758.8,0.8217]
[1743692110326,6.613,1759.3,1758.9,0.05684303]
[1743692110525,46.61647,1759.5,1758.9,0.056843]
[1743692110526,47.52,1759.5,1758.9,0.056843]
[1743692110723,40.933,1759.5,1759.0,0.3615]
[1743692110889,40.933,1759.5,1759.1,1.1369]
[1743692111095,40.933,1759.5,1759.2,0.7891]
[1743692111295,6.601,1759.7,1759.2,0.7891]
[1743692111490,0.05,1759.9,1759.4,0.7891]
[1743692111702,0.05,1759.9,1759.3,0.41832603]
[1743692111703,0.05,1759.9,1759.6,0.8082]
[1743692112037,0.05,1759.9,1759.7,0.05681429]
[1743692112231,0.05,1759.9,1759.6,0.8082]
[1743692113027,5.68249,1759.8,1759.5,0.3615]
[1743692113239,5.68291,1759.7,1759.2,0.7622]
[1743692113441,6.603,1759.6,1759.3,0.05683342]
[1743692113609,6.603,1759.6,1759.2,0.7622]
[1743692113809,12.28628,1759.6,1759.2,0.7622]
[1743692114139,12.28628,1759.6,1759.2,0.81903528]
[1743692114334,5.68348,1759.5,1759.1,0.3615]
[1743692114497,5.68348,1759.5,1759.0,0.7839]
[1743692114706,14.083048,1759.6,1759.0,0.7839]
[1743692115057,6.603,1759.6,1759.0,0.7839]
[1743692115522,5.68346,1759.5,1759.0,0.7839]
[1743692115739,13.04735,1759.6,1759.0,0.7839]
[1743692116065,6.603,1759.6,1759.1,0.05684315]
[1743692116217,0.05,1759.9,1759.2,1.18082947]
[1743692116552,0.05,1759.9,1759.4,0.7625]
[1743692116717,6.623,1759.9,1759.4,0.7625]
[1743692116916,12.30521,1759.9,1759.4,0.7625]
[1743692117316,5.68249,1759.8,1759.4,0.7625]
[1743692117735,5.68307,1759.7,1759.4,0.7625]
[1743692118047,5.68313,1759.6,1759.3,0.3615]
[1743692118225,6.565,1759.5,1759.3,0.3615]
[1743692118615,6.562,1759.8,1759.3,0.3615]
[1743692119750,8.359671,1759.8,1759.3,0.3615]
[1743692119922,5.6844,1759.2,1758.8,1.1185]
[1743692120118,5.68522,1759.0,1758.6,0.757]
[1743692120448,5.68655,1758.6,1758.2,0.757]
[1743692120633,12.26687,1758.5,1758.2,0.757]
[1743692120829,6.58,1758.5,1758.2,0.757]
[1743692121537,3.0,1758.7,1758.2,0.757]
[1743692121746,6.587,1758.6,1758.2,0.757]
[1743692123533,5.68672,1758.5,1758.2,0.757]
[1743692123724,13.500787,1758.6,1758.2,0.757]
[1743692124435,6.587,1758.6,1758.2,0.757]
[1743692124646,6.577,1758.6,1758.2,1.1185]
[1743692124957,12.2612,1758.7,1758.2,1.1185]
[1743692125152,5.68652,1758.6,1758.2,1.1185]
[1743692125542,5.68691,1758.5,1758.2,0.757]
[1743692125745,5.68666,1758.5,1758.2,0.757]
[1743692125945,5.68711,1758.4,1758.2,0.757]
[1743692126151,6.566,1758.3,1757.9,0.7912]
[1743692126442,12.25341,1758.3,1757.9,0.7912]
[1743692126644,6.566,1758.3,1757.9,0.7912]
[1743692127661,6.48376,1758.6,1757.9,0.7912]
[1743692127959,12.25468,1758.5,1757.9,0.7912]
[1743692128155,5.68711,1758.4,1757.9,0.7912]
[1743692128561,11.37489,1758.3,1757.9,0.7912]
[1743692128868,4.28779953,1758.4,1757.7,0.3615]
[1743692128869,3.85280671,1758.2,1757.7,0.3615]
[1743692129067,12.24607,1758.1,1757.7,0.3615]
[1743692129624,6.558,1758.1,1757.7,0.3615]
[1743692129838,6.558,1758.1,1757.8,0.8186]
[1743692130058,6.558,1758.1,1757.8,1.1801]
[1743692130266,40.94,1758.3,1757.8,1.1801]
[1743692130441,40.94,1758.3,1757.9,0.8018]
[1743692131440,40.94,1758.3,1757.9,5.6884]
[1743692131657,6.551,1758.4,1758.1,0.8018]
[1743692131902,6.539,1758.7,1758.2,0.3615]
[1743692132040,12.22519,1758.7,1758.2,0.3615]
[1743692132240,6.539,1758.7,1758.2,0.41836882]
[1743692132482,47.488,1758.9,1758.3,0.8038]
[1743692132688,47.488,1758.9,1758.4,1.1653]
[1743692132857,47.486,1758.9,1758.4,1.1653]
[1743692133590,6.539,1759.2,1758.5,1.1921541]
[1743692133886,47.42072,1759.6,1758.7,0.7667]
[1743692134041,6.542,1759.5,1758.9,0.7667]
[1743692134370,6.542,1759.5,1759.0,0.05683752]
[1743692134571,6.542,1759.5,1759.0,0.3615]
[1743692135388,40.948,1759.6,1759.1,1.1175]
[1743692135747,46.63119,1759.6,1759.1,1.1175]
[1743692135992,52.23829982,1759.6,1759.1,1.1175]
[1743692136194,46.55510982,1759.6,1759.1,1.1175]
[1743692136395,40.948,1759.6,1759.1,1.1175]
[1743692138998,40.948,1759.6,1759.2,0.05683163]
[1743692139459,40.948,1759.6,1759.4,0.7684]
[1743692141178,0.05,1759.9,1759.5,0.3615]
[1743692141379,0.05,1759.9,1759.6,0.84331949]
[1743692141560,0.05,1759.9,1759.6,0.7865]
[1743692141758,0.05,1759.9,1759.7,0.41832002]
[1743692142071,0.05,1759.9,1759.7,0.3615]
[1743692142796,0.05,1759.9,1759.8,0.7865]
[1743692142997,0.05,1759.9,1759.8,1.148]
[1743692143199,0.05,1759.9,1759.8,1.2048087]
[1743692143502,0.05,1759.9,1759.8,1.83674387]
[1743692143803,0.05,1759.9,1759.8,1.148]
[1743692144656,0.05,1759.9,1759.8,1.56524919]
[1743692145598,0.05,1759.9,1759.8,1.148]
[1743692147356,0.05,1759.9,1759.8,9.85326]
[1743692148277,0.05,1759.9,1759.8,10.83709004]
[1743692148583,6.495,1760.8,1760.1,0.7645]
[1743692148899,6.495,1760.8,1760.2,0.3115]
[1743692149196,9.545,1760.9,1760.3,0.7645]
[1743692149498,15.22395,1760.9,1760.4,0.3115]
[1743692150185,3.05,1760.9,1760.4,0.3115]
[1743692150385,9.545,1760.9,1760.4,0.3115]
[1743692150584,15.22392,1760.9,1760.4,0.3115]
[1743692151324,5.67925,1760.8,1760.4,0.3115]
[1743692151624,11.35878,1760.8,1760.4,0.3115]
[1743692152525,5.67961,1760.7,1760.4,0.3115]
[1743692152706,6.48598,1760.8,1760.4,0.3115]
[1743692152880,5.67936,1760.8,1760.4,0.3115]
[1743692153074,5.6797,1760.7,1760.4,0.3115]
[1743692153294,5.67994,1760.6,1760.1,0.7782]
[1743692153474,5.68068,1760.4,1760.1,0.7782]
[1743692153669,12.17468,1760.4,1760.0,0.3115]
[1743692153890,6.494,1760.4,1760.0,0.36831177]
[1743692154603,6.494,1760.7,1760.1,0.8001]
[1743692154773,0.05,1760.9,1760.2,0.05679524]
[1743692154969,6.494,1760.8,1760.3,1.1224]
[1743692155977,6.494,1760.8,1760.4,0.05679481]
[1743692156179,0.05,1760.9,1760.5,0.7682]
[1743692156379,0.05,1760.9,1760.5,1.0797]
[1743692156790,0.05,1760.9,1760.5,0.3115]
[1743692157016,0.05,1760.9,1760.7,0.767]
[1743692157283,0.05,1760.9,1760.8,0.767]
[1743692158077,0.05,1760.9,1760.8,1.0785]
[1743692162404,0.05,1760.9,1760.8,1.0643]
[1743692164003,0.05,1760.9,1760.8,0.3115]
[1743692166395,5.67925,1760.8,1760.4,0.8117]
[1743692166616,9.53205671,1760.8,1760.3,0.3115]
[1743692166824,15.21152671,1760.8,1760.3,0.3115]
[1743692167018,9.53205671,1760.8,1760.3,0.3115]
[1743692167321,0.05,1760.9,1760.5,0.7764]
[1743692167529,0.05,1760.9,1760.6,0.3115]
[1743692167820,0.05,1760.9,1760.7,0.8098]
[1743692168119,0.05,1760.9,1760.8,0.3115]
[1743692169687,0.05,1760.9,1760.5,0.8242]
[1743692169894,11.37174571,1760.9,1760.3,1.19259368]
[1743692170343,9.58198671,1760.9,1760.3,1.19259368]
[1743692170641,5.67961,1760.7,1760.3,1.19259368]
[1743692170791,6.49214,1760.6,1760.0,0.7509]
[1743692170991,6.49,1760.5,1760.1,0.05680592]
[1743692171188,6.49,1760.5,1760.1,0.3115]
[1743692171393,12.17031,1760.5,1760.1,0.3115]
[1743692171608,6.49,1760.5,1760.1,0.3115]
[1743692171994,3.85280671,1760.3,1759.6,1.0773]
[1743692172200,5.68186,1760.0,1759.6,1.0773]
[1743692172525,6.49,1759.9,1759.6,0.7658]
[1743692175125,12.17131,1760.2,1759.6,0.7658]
[1743692175329,3.0,1760.1,1759.6,0.7658]
[1743692175625,5.98201,1760.0,1759.6,0.7658]
[1743692175843,5.68201,1760.0,1759.6,0.7658]
[1743692176046,3.0,1760.1,1759.6,0.7658]
[1743692176047,8.6815,1760.1,1759.6,0.7658]
[1743692176248,5.6815,1760.1,1759.6,0.7658]
[1743692176611,17.85249,1760.2,1759.6,0.7658]
[1743692176812,9.491,1760.3,1759.7,0.3115]
[1743692177034,9.491,1760.3,1759.8,0.8095]
[1743692177035,6.491,1760.3,1759.8,0.8095]
[1743692177351,40.896,1760.4,1760.0,0.8095]
[1743692178014,40.896,1760.4,1760.0,1.2216]
[1743692178432,40.896,1760.4,1760.0,0.8095]
[1743692179451,5.68095,1760.3,1759.9,0.3115]
[1743692179626,40.896,1760.4,1759.9,0.3115]
[1743692180029,46.57663,1760.4,1759.9,0.3115]
[1743692180353,40.896,1760.4,1759.9,0.3683127]
[1743692180714,40.896,1760.4,1759.9,0.3115]
[1743692180921,40.896,1760.4,1760.0,0.7965]
[1743692181271,5.68098,1760.3,1759.9,0.3115]
[1743692181424,6.492,1760.2,1759.9,0.3115]
[1743692181861,6.492,1760.2,1759.6,0.7868]
[1743692182030,11.36395,1760.0,1759.6,0.7868]
[1743692182229,3.0,1760.1,1759.5,0.3115]
[1743692182230,0.7559,1759.8,1759.5,0.3115]
[1743692182575,12.17398,1759.7,1759.3,0.7868]
[1743692183023,12.17396,1759.7,1759.3,0.7868]
[1743692183229,17.85695,1759.7,1759.3,0.7868]
[1743692183424,12.17396,1759.7,1759.3,0.7868]
[1743692184270,6.491,1759.7,1759.3,0.7868]
[1743692185725,12.17391,1759.7,1759.3,0.7868]
[1743692185948,5.68324,1759.6,1759.1,0.7637]
[1743692186347,5.68324,1759.6,1759.2,0.05683762]
[1743692186775,5.68324,1759.6,1759.1,0.7637]
[1743692186936,6.491,1759.7,1759.2,0.05683766]
[1743692187134,3.0,1760.0,1759.3,0.7698]
[1743692187373,6.493,1759.9,1759.3,1.0813]
[1743692187579,6.493,1759.9,1759.4,0.05682861]
[1743692187785,6.493,1759.9,1759.3,1.0813]
[1743692188137,5.68278,1759.7,1759.3,1.0813]
[1743692188544,5.68249,1759.8,1759.3,1.0813]
[1743692188774,12.1752,1759.9,1759.3,1.0813]
[1743692189083,6.493,1759.9,1759.3,1.0813]
[1743692189287,6.493,1759.9,1759.4,0.05683607]
[1743692189449,41.6566,1760.4,1759.6,5.683]
[1743692189644,40.896,1760.4,1759.8,0.7876]
[1743692190069,5.6813,1760.2,1759.8,0.7876]
[1743692190272,5.68187,1760.0,1759.5,0.7876]
[1743692190470,6.493,1760.0,1759.5,0.7876]
[1743692190778,12.17493,1760.0,1759.5,0.7876]
[1743692190988,6.493,1760.0,1759.5,0.84442621]
[1743692191294,6.493,1760.0,1759.5,0.7876]
[1743692191716,12.17484,1760.0,1759.5,0.7876]
[1743692191991,8.536784,1760.0,1759.5,0.7876]
[1743692192168,5.68261,1759.8,1759.4,0.3115]
[1743692192494,5.68214,1759.9,1759.4,0.3115]
[1743692192800,6.493,1759.8,1759.5,0.05682918]
[1743692192959,12.17493,1760.0,1759.6,0.8246]
[1743692193799,5.68153,1760.1,1759.6,0.8246]
[1743692194099,6.492,1760.0,1759.6,0.8246]
[1743692195097,41.87261402,1760.4,1759.6,0.8246]
[1743692195098,5.68092,1760.3,1759.6,0.8246]
[1743692195304,6.492,1760.2,1759.8,0.8139]
[1743692195464,40.896,1760.4,1759.8,1.1254]
[1743692195672,52.25736,1760.4,1759.8,1.1254]
[1743692196001,40.896,1760.4,1759.9,0.05681378]
[1743692196769,40.896,1760.4,1759.9,0.7518]
[1743692197198,46.57655,1760.4,1759.9,0.7518]
[1743692197361,5.68131,1760.2,1759.8,0.3115]
[1743692197568,5.68233,1759.9,1759.4,0.7851]
[1743692198306,5.68187,1760.0,1759.4,0.84192868]
[1743692198494,5.68257,1759.8,1759.4,0.7851]
[1743692198664,5.68291,1759.7,1759.3,0.3115]
[1743692198868,5.68291,1759.7,1758.7,12.17797]
[1743692198869,12.17491,1759.7,1759.2,0.7704]
[1743692199102,6.492,1759.7,1759.2,0.7704]
[1743692199296,12.17498,1759.7,1759.2,0.7704]
[1743692199665,6.492,1759.7,1759.2,0.7704]
[1743692199904,17.8579,1759.7,1759.2,0.7704]
[1743692200062,6.492,1759.7,1759.2,0.7704]
[1743692200265,17.85788,1759.7,1759.2,0.7704]
[1743692200467,6.492,1759.7,1759.2,0.7704]
[1743692202920,12.17493,1759.7,1759.2,0.7704]
[1743692203127,1.217493,1759.6,1759.2,0.7704]
[1743692203285,12.17493,1759.7,1759.2,0.7704]
[1743692203597,6.492,1759.7,1759.2,0.7704]
[1743692203803,5.68424,1759.3,1759.0,0.8319]
[1743692204133,12.17624,1759.3,1758.8,0.8319]
[1743692204339,6.492,1759.6,1758.9,1.20025022]
[1743692204495,5.68249,1759.8,1759.1,0.8319]
[1743692204685,5.68246,1759.8,1759.2,0.05683122]
[1743692204891,6.492,1759.9,1759.2,0.05683122]
[1743692205097,6.492,1759.8,1759.3,0.8078]
[1743692205930,6.492,1759.8,1759.3,0.86463283]
[1743692206832,6.492,1759.8,1759.4,0.05683092]
[1743692207020,5.68354,1759.5,1759.1,0.7695]
[1743692207342,5.6844,1759.2,1758.8,0.804]
[1743692207539,6.492,1759.4,1758.8,0.804]
[1743692207713,44.77480671,1759.5,1758.9,0.3115]
[1743692207714,40.922,1759.5,1758.9,0.3115]
[1743692207911,47.414,1759.5,1759.1,0.757]
[1743692208320,40.922,1759.5,1759.1,0.757]
[1743692208650,46.6055,1759.5,1759.1,0.757]
[1743692208830,40.922,1759.5,1759.1,0.757]
[1743692209647,12.17597,1759.4,1759.1,0.757]
[1743692209936,5.68419,1759.3,1758.9,1.1032]
[1743692210133,12.17597,1759.4,1758.9,1.1032]
[1743692210340,11.36857,1759.3,1758.9,1.1032]
[1743692210638,7.470247,1759.3,1758.9,1.1032]
[1743692211415,5.68452,1759.2,1758.9,1.1032]
[1743692211616,5.584857,1759.3,1758.5,0.8027]
[1743692211806,3.0,1759.2,1758.5,0.8027]
[1743692212008,15.7775657,1759.2,1758.5,0.8027]
[1743692212235,5.68518,1759.0,1758.5,0.8027]
[1743692212444,6.492,1758.9,1758.5,0.8027]
[1743692212818,12.17749,1758.9,1758.5,0.8027]
[1743692213247,17.86303,1758.9,1758.5,0.8027]
[1743692213422,19.649353,1758.9,1758.5,0.8027]
[1743692213625,53.4400907,1758.9,1758.1,0.05]
[1743692213858,5.68755,1758.3,1758.1,0.05]
[1743692214040,12.17963,1758.2,1758.1,0.05]
[1743692214223,16.966348,1758.2,1758.1,0.05]
[1743692214423,11.278718,1758.2,1758.1,0.05]
[1743692214630,9.492,1758.2,1758.1,0.05]
[1743692214825,6.492,1758.2,1758.1,0.05]
[1743692215228,12.17963,1758.2,1758.1,0.05]
[1743692215549,6.492,1758.2,1758.1,0.05]
[1743692215726,12.17963,1758.2,1758.1,0.05]
[1743692216153,6.492,1758.2,1758.1,0.05]
[1743692216721,7.03932,1758.5,1758.1,0.05]
[1743692216722,6.492,1758.3,1758.1,0.05]
[1743692216951,6.492,1758.6,1758.1,0.8418]
[1743692217549,5.68677,1758.5,1758.1,0.8418]
[1743692217756,5.68723,1758.4,1758.1,0.8418]
[1743692218316,5.68718,1758.4,1758.1,0.05]
[1743692218927,5.68763,1758.2,1758.1,0.05]
[1743692219125,10.36339671,1758.5,1758.1,0.05]
[1743692219424,8.31792007,1758.5,1758.1,0.05]
[1743692219653,2.63122007,1758.5,1758.1,0.05]
[1743692219841,4.40280671,1758.7,1758.1,0.05]
[1743692219842,3.0,1758.7,1758.1,0.05]
[1743692220042,6.494,1758.5,1758.1,0.05]
[1743692220651,12.18082,1758.5,1758.1,0.05]
[1743692220853,5.687,1758.4,1758.1,0.05]
[1743692221017,6.494,1758.5,1758.1,0.05]
[1743692222022,6.494,1758.5,1758.2,0.8042]
[1743692222524,8.68604,1758.7,1758.2,0.8042]
[1743692222720,3.0,1758.7,1758.2,0.8042]
[1743692222923,8.68612,1758.7,1758.2,0.8042]
[1743692223124,5.68646,1758.6,1758.2,0.8042]
[1743692223351,7.123798,1758.6,1758.2,0.8042]
[1743692223559,1.437258,1758.6,1758.2,0.8042]
[1743692223761,5.68694,1758.5,1758.1,0.05]
[1743692223964,6.494,1758.4,1758.1,0.05]
[1743692224141,12.181,1758.4,1758.1,0.05]
[1743692224533,5.68735,1758.3,1758.1,0.05]
[1743692224733,12.18124,1758.4,1758.1,0.05]
[1743692225027,9.54043671,1758.2,1758.1,0.05]
[1743692225228,5.68911,1757.8,1757.6,0.3115]
[1743692225462,6.494,1757.7,1757.6,0.3115]
[1743692226234,6.495,1758.0,1757.6,1.101]
[1743692226538,17.87182,1758.0,1757.6,1.101]
[1743692226740,8.282182,1758.0,1757.6,1.101]
[1743692226976,13.970632,1758.0,1757.6,1.101]
[1743692227268,19.659122,1758.0,1757.6,1.101]